bitfinex/quotes_BTCUSD_20230120
["timestamp","ask_amount","ask_price","bid_price","bid_amount"]
[1674251694776,0.34157518,22329.0,22326.0,0.45]
[1674251695062,0.15095766,22331.0,22326.0,0.003]
[1674251695063,0.44102653,22328.0,22326.0,0.003]
[1674251695278,0.37702653,22328.0,22326.0,0.42996925]
[1674251695537,0.064,22327.0,22326.0,0.43296925]
[1674251696032,0.064,22327.0,22326.0,0.73296925]
[1674251696448,0.15095766,22331.0,22326.0,0.72996925]
[1674251696629,0.058,22328.0,22327.0,0.43423908]
[1674251696884,0.41342681,22329.0,22327.0,0.43423908]
[1674251697418,0.332805,22328.0,22327.0,0.43423908]
[1674251697693,0.332805,22328.0,22325.0,0.447921]
[1674251697939,0.304497,22327.0,22326.0,0.46875813]
[1674251698201,0.41342681,22329.0,22326.0,0.46875813]
[1674251698459,0.45542681,22329.0,22327.0,0.003]
[1674251698724,0.56122681,22329.0,22327.0,0.003]
[1674251699251,0.51922681,22329.0,22326.0,0.46675813]
[1674251699517,0.006,22328.0,22326.0,0.46675813]
[1674251699769,0.51922681,22329.0,22326.0,0.46675813]
[1674251700020,0.51922681,22329.0,22327.0,0.003]
[1674251700021,0.58022681,22329.0,22327.0,0.003]
[1674251700307,0.58022681,22329.0,22326.0,0.46675813]
[1674251700566,0.58022681,22329.0,22326.0,0.46975813]
[1674251700567,0.044,22328.0,22326.0,0.46975813]
[1674251700818,0.044,22328.0,22326.0,0.46675813]
[1674251701071,0.044,22328.0,22327.0,0.003]
[1674251701320,0.15,22328.0,22326.0,0.46675813]
[1674251701659,0.57064432,22328.0,22324.0,0.90710837]
[1674251701934,0.75566675,22328.0,22324.0,0.90710837]
[1674251702217,0.75566675,22328.0,22326.0,0.003]
[1674251702469,0.315867,22327.0,22324.0,0.90710837]
[1674251702718,0.75566675,22328.0,22325.0,0.39650008]
[1674251702978,0.57664432,22328.0,22325.0,0.39650008]
[1674251703208,0.37866584,22327.0,22325.0,0.39650008]
[1674251703431,0.38466584,22327.0,22325.0,0.39650008]
[1674251703684,0.37866584,22327.0,22325.0,0.39650008]
[1674251703926,0.37866584,22327.0,22325.0,0.42650008]
[1674251704466,0.37866584,22327.0,22323.0,0.447957]
[1674251704708,0.323596,22326.0,22323.0,0.45989126]
[1674251704950,0.37866584,22327.0,22323.0,0.45989126]
[1674251705205,0.15,22326.0,22323.0,0.45989126]
[1674251705465,0.15,22326.0,22325.0,0.03]
[1674251705719,0.15,22326.0,22324.0,0.39502165]
[1674251706005,0.317852,22325.0,22324.0,0.39502165]
[1674251706274,0.70133608,22325.0,22322.0,0.40840997]
[1674251706532,0.480628,22324.0,22323.0,0.4449116]
[1674251707549,0.044,22325.0,22323.0,0.4449116]
[1674251708277,0.61402066,22327.0,22323.0,0.4449116]
[1674251708535,0.061,22324.0,22323.0,0.4479116]
[1674251708795,0.061,22324.0,22323.0,0.4449116]
[1674251708796,0.326257,22324.0,22323.0,0.4449116]
[1674251709049,0.211,22325.0,22323.0,0.4479116]
[1674251709352,0.303276,22324.0,22321.0,0.37890418]
[1674251709584,0.00095879,22328.0,22324.0,0.02594976]
[1674251709849,0.43926682,22332.0,22326.0,0.0684]
[1674251710108,0.00097433,22330.0,22327.0,1.66723795]
[1674251710358,0.00097433,22330.0,22329.0,0.2429]
[1674251710609,0.33763755,22333.0,22329.0,1.50273]
[1674251710864,0.33763755,22333.0,22330.0,0.601426]
[1674251711171,0.00098522,22334.0,22331.0,0.064124]
[1674251711421,0.00098522,22334.0,22331.0,0.40058037]
[1674251712045,0.006,22333.0,22331.0,0.40058037]
[1674251712191,0.58132639,22334.0,22331.0,0.40058037]
[1674251712451,0.62532639,22334.0,22331.0,0.40358037]
[1674251712699,0.39822884,22333.0,22331.0,0.003]
[1674251712954,0.312744,22332.0,22331.0,0.003]
[1674251713204,0.462744,22332.0,22331.0,0.003]
[1674251713486,0.39822884,22333.0,22331.0,0.003]
[1674251713743,0.19498522,22334.0,22331.0,0.003]
[1674251713744,0.19498522,22334.0,22331.0,0.35208509]
[1674251713999,0.19498522,22334.0,22331.0,0.34908509]
[1674251714000,0.55353433,22334.0,22331.0,0.34908509]
[1674251714261,0.044,22333.0,22331.0,0.35208509]
[1674251715034,0.55353433,22334.0,22331.0,0.34908509]
[1674251715543,0.309351,22333.0,22331.0,0.34908509]
[1674251715797,0.044,22333.0,22331.0,0.34908509]
[1674251716061,0.55353433,22334.0,22331.0,0.34908509]
[1674251716313,0.44753433,22334.0,22331.0,0.34908509]
[1674251716583,0.00098522,22334.0,22331.0,0.34908509]
[1674251716828,0.044,22333.0,22331.0,0.35208509]
[1674251717080,0.50123324,22333.0,22331.0,0.35208509]
[1674251717828,0.00098522,22334.0,22331.0,0.34908509]
[1674251718092,0.42125914,22333.0,22331.0,0.35208509]
[1674251718350,0.04498522,22334.0,22329.0,0.690738]
[1674251718621,0.044,22333.0,22331.0,0.003]
[1674251718877,0.044,22333.0,22332.0,0.38214546]
[1674251719097,0.044,22333.0,22332.0,0.68214546]
[1674251719597,0.044,22333.0,22332.0,0.38214546]
[1674251719843,0.44951048,22335.0,22332.0,0.46136725]
[1674251720100,0.01461817,22337.0,22332.0,0.747777]
[1674251720354,0.45947579,22336.0,22333.0,0.772841]
[1674251720603,0.45947579,22336.0,22333.0,0.3]
[1674251720848,0.45947579,22336.0,22334.0,0.2512]
[1674251721116,0.39213725,22335.0,22334.0,0.2512]
[1674251721358,0.07561817,22337.0,22334.0,0.2512]
[1674251721615,0.15,22336.0,22334.0,0.2512]
[1674251721860,0.211,22336.0,22334.0,0.60899942]
[1674251722102,0.36024655,22337.0,22334.0,0.60899942]
[1674251722360,0.36024655,22337.0,22334.0,0.61199942]
[1674251722361,0.061,22335.0,22334.0,0.61199942]
[1674251722610,0.01461817,22337.0,22334.0,0.90899942]
[1674251722865,0.061,22336.0,22334.0,0.91199942]
[1674251723089,0.211,22336.0,22334.0,0.91199942]
[1674251723613,0.211,22336.0,22334.0,0.61199942]
[1674251723614,0.061,22336.0,22334.0,0.61199942]
[1674251723865,0.01461817,22337.0,22334.0,0.60899942]
[1674251724121,0.07061817,22337.0,22335.0,0.42413211]
[1674251724618,0.056,22336.0,22335.0,0.42413211]
[1674251724884,0.06962228,22337.0,22335.0,0.42413211]
[1674251724885,0.01362228,22337.0,22335.0,0.42413211]
[1674251725136,0.01362228,22337.0,22335.0,0.42713211]
[1674251725137,0.15,22336.0,22335.0,0.42713211]
[1674251725389,0.15,22336.0,22335.0,0.42413211]
[1674251725652,0.540097,22336.0,22335.0,0.42713211]
[1674251727456,0.540097,22336.0,22335.0,0.003]
[1674251727711,0.390097,22336.0,22335.0,0.15768915]
[1674251727958,0.056,22336.0,22335.0,0.15768915]
[1674251730249,0.44285085,22336.0,22335.0,0.3]
[1674251730502,0.44285085,22336.0,22335.0,0.1444]
[1674251731543,0.056,22336.0,22335.0,0.1444]
[1674251731792,0.106,22336.0,22335.0,0.1444]
[1674251732055,0.552875,22336.0,22335.0,0.1444]
[1674251732279,0.559924,22336.0,22335.0,0.1444]
[1674251732529,0.409924,22336.0,22335.0,0.1444]
[1674251732763,0.106,22336.0,22335.0,0.1444]
[1674251733268,0.101,22336.0,22335.0,0.1444]
[1674251733535,0.82741721,22336.0,22335.0,0.1444]
[1674251735581,0.97741721,22336.0,22335.0,0.1444]
[1674251736857,0.82741721,22336.0,22335.0,0.1444]
[1674251737896,0.421024,22336.0,22335.0,0.1444]
[1674251738155,0.101,22336.0,22335.0,0.1444]
[1674251738652,0.399716,22336.0,22335.0,0.58857338]
[1674251738907,0.101,22336.0,22335.0,0.58857338]
[1674251739153,0.101,22336.0,22335.0,1.03630038]
[1674251739417,0.101,22336.0,22335.0,0.58857338]
[1674251742479,0.101,22336.0,22335.0,0.88857338]
[1674251743245,0.05,22336.0,22335.0,0.88857338]
[1674251743503,0.093,22336.0,22335.0,0.89257338]
[1674251743755,0.05,22336.0,22335.0,0.88857338]
[1674251744020,0.093,22336.0,22335.0,0.59257338]
[1674251744273,0.05,22336.0,22335.0,0.88857338]
[1674251744540,0.093,22336.0,22335.0,0.89257338]
[1674251744784,0.05,22336.0,22335.0,0.58857338]
[1674251745037,0.093,22336.0,22335.0,0.59257338]
[1674251745295,0.093,22336.0,22335.0,0.58857338]
[1674251745560,0.05,22336.0,22335.0,0.59257338]
[1674251745817,0.093,22336.0,22335.0,0.59257338]
[1674251746621,0.05,22336.0,22335.0,0.58857338]
[1674251746863,0.093,22336.0,22335.0,0.59257338]
[1674251747115,0.05,22336.0,22335.0,0.58857338]
[1674251747366,0.093,22336.0,22335.0,0.59257338]
[1674251747680,0.093,22336.0,22335.0,0.58857338]
[1674251748119,0.093,22336.0,22335.0,0.59257338]
[1674251748613,0.136,22336.0,22335.0,1.04657338]
[1674251748865,0.136,22336.0,22335.0,0.89657338]
[1674251749122,0.136,22336.0,22335.0,0.59657338]
[1674251749591,0.05,22336.0,22335.0,0.88857338]
[1674251750088,0.05,22336.0,22335.0,0.58857338]
[1674251750610,0.093,22336.0,22335.0,0.59257338]
[1674251751116,0.093,22336.0,22335.0,0.89257338]
[1674251751645,0.093,22336.0,22335.0,0.767319]
[1674251751894,0.093,22336.0,22335.0,1.27967642]
[1674251752163,0.093,22336.0,22335.0,1.12967642]
[1674251752421,0.093,22336.0,22335.0,0.81075742]
[1674251752670,0.05,22336.0,22335.0,0.80675742]
[1674251752919,0.05,22336.0,22335.0,1.12558242]
[1674251753174,0.093,22336.0,22335.0,1.12981442]
[1674251753427,0.093,22336.0,22335.0,0.5984]
[1674251753933,0.093,22336.0,22335.0,0.994981]
[1674251754197,0.093,22336.0,22335.0,1.31284076]
[1674251755235,0.093,22336.0,22335.0,1.16284076]
[1674251755727,0.093,22336.0,22335.0,0.98465976]
[1674251755994,0.093,22336.0,22335.0,1.31014176]
[1674251755995,0.09284482,22336.0,22335.0,1.31014176]
[1674251757495,0.09284482,22336.0,22335.0,1.16014176]
[1674251757759,0.09284482,22336.0,22335.0,0.83465976]
[1674251758231,0.09284482,22336.0,22335.0,0.98465976]
[1674251758482,0.09284482,22336.0,22335.0,0.83465976]
[1674251758736,0.09284482,22336.0,22335.0,0.98465976]
[1674251758992,0.09284482,22336.0,22335.0,0.83465976]
[1674251759505,0.09284482,22336.0,22335.0,1.33976268]
[1674251760018,0.09284482,22336.0,22335.0,1.18976268]
[1674251760237,0.09284482,22336.0,22335.0,0.85800368]
[1674251760496,0.09284482,22336.0,22335.0,1.00800368]
[1674251760731,0.09284482,22336.0,22335.0,0.85800368]
[1674251762687,0.09284482,22336.0,22335.0,0.71148057]
[1674251763470,0.09284482,22336.0,22335.0,0.86148057]
[1674251764983,0.09284482,22336.0,22335.0,0.71148057]
[1674251765798,0.09284482,22336.0,22335.0,0.50840368]
[1674251766059,0.08784482,22336.0,22335.0,0.50840368]
[1674251766576,0.08784482,22336.0,22335.0,0.65840368]
[1674251767089,0.07284482,22336.0,22335.0,0.95840368]
[1674251767592,0.07284482,22336.0,22335.0,0.50840368]
[1674251767849,0.38070182,22336.0,22335.0,0.50840368]
[1674251768585,0.07284482,22336.0,22335.0,0.50840368]
[1674251770088,0.07284482,22336.0,22335.0,0.80840368]
[1674251770595,0.07284482,22336.0,22335.0,0.90840368]
[1674251770843,0.07284482,22336.0,22335.0,0.50840368]
[1674251771611,0.07284482,22336.0,22335.0,0.65840368]
[1674251771874,0.07284482,22336.0,22335.0,0.50840368]
[1674251772126,0.07284482,22336.0,22335.0,0.80840368]
[1674251772634,0.07284482,22336.0,22335.0,0.50840368]
[1674251773386,0.38614782,22336.0,22335.0,0.50840368]
[1674251773891,0.07284482,22336.0,22335.0,0.50840368]
[1674251774142,0.07284482,22336.0,22335.0,0.26629142]
[1674251774411,0.39026182,22336.0,22335.0,0.0948]
[1674251774684,0.90217454,22336.0,22335.0,0.0948]
[1674251775461,0.95933727,22336.0,22335.0,0.0948]
[1674251775957,0.59242455,22336.0,22335.0,0.0948]
[1674251776242,0.46686182,22336.0,22335.0,0.0948]
[1674251776493,0.61686182,22336.0,22335.0,0.0948]
[1674251776770,0.57386182,22336.0,22335.0,0.0948]
[1674251776971,0.66386182,22336.0,22335.0,0.0948]
[1674251777226,0.97925091,22336.0,22335.0,0.0948]
[1674251777488,1.08656768,22336.0,22335.0,0.0948]
[1674251777747,0.77117859,22336.0,22335.0,0.0948]
[1674251777998,0.84175345,22336.0,22335.0,0.0948]
[1674251778252,0.93275345,22336.0,22335.0,0.0948]
[1674251778994,0.84175345,22336.0,22335.0,0.0948]
[1674251779251,0.93262945,22336.0,22335.0,0.0948]
[1674251779502,1.24810486,22336.0,22335.0,0.0948]
[1674251779757,0.77205349,22336.0,22335.0,0.0948]
[1674251780525,0.93262835,22336.0,22335.0,0.0948]
[1674251781045,0.77205349,22336.0,22335.0,0.0948]
[1674251781899,0.66486182,22336.0,22335.0,0.0948]
[1674251782371,1.01511847,22336.0,22335.0,0.0948]
[1674251782618,0.79701847,22336.0,22335.0,0.0948]
[1674251783917,0.70601847,22336.0,22335.0,0.0948]
[1674251784136,0.79701847,22336.0,22335.0,0.0948]
[1674251784387,0.70601847,22336.0,22335.0,0.0948]
[1674251784889,0.79701847,22336.0,22335.0,0.0948]
[1674251785640,0.43826182,22336.0,22335.0,0.0948]
[1674251785932,0.43826182,22336.0,22335.0,0.67390147]
[1674251785933,0.12084482,22336.0,22335.0,0.67390147]
[1674251787195,0.02984482,22336.0,22335.0,0.35018547]
[1674251787457,0.03584482,22336.0,22335.0,0.35818547]
[1674251787705,0.02984482,22336.0,22335.0,0.35018547]
[1674251787961,0.05884482,22336.0,22335.0,0.35118547]
[1674251788978,0.05884482,22336.0,22335.0,0.65118547]
[1674251789268,0.05884482,22336.0,22335.0,0.67073647]
[1674251789521,0.05884482,22336.0,22335.0,0.35118547]
[1674251792214,0.05884482,22336.0,22335.0,0.65118547]
[1674251792462,0.05884482,22336.0,22335.0,0.35118547]
[1674251792962,0.05884482,22336.0,22335.0,0.50118547]
[1674251793216,0.05884482,22336.0,22335.0,0.35118547]
[1674251794762,0.05884482,22336.0,22335.0,0.65118547]
[1674251795027,0.00604482,22336.0,22335.0,0.4642]
[1674251795290,0.00604482,22336.0,22335.0,1.33471649]
[1674251795533,0.00604482,22336.0,22335.0,1.06737154]
[1674251796029,0.00604482,22336.0,22335.0,0.91737154]
[1674251796275,0.00604482,22336.0,22335.0,0.22143749]
[1674251796521,0.36683467,22337.0,22335.0,0.22143749]
[1674251796766,0.01362228,22337.0,22336.0,0.447707]
[1674251797019,0.45939446,22337.0,22336.0,0.447707]
[1674251797260,0.39961638,22336.0,22335.0,0.550722]
[1674251797511,0.01362228,22337.0,22335.0,0.955522]
[1674251797758,0.01962228,22337.0,22336.0,0.434325]
[1674251798000,0.01962228,22337.0,22336.0,0.850032]
[1674251798244,0.01362228,22337.0,22336.0,1.000032]
[1674251798997,0.01962228,22337.0,22336.0,1.07860951]
[1674251800970,0.01362228,22337.0,22336.0,1.04660951]
[1674251801222,0.01962228,22337.0,22336.0,1.07860951]
[1674251802241,0.00967223,22338.0,22336.0,1.032032]
[1674251802506,0.00967223,22338.0,22337.0,0.26265924]
[1674251802762,0.00967223,22338.0,22337.0,1.000008]
[1674251803006,0.00967223,22338.0,22337.0,1.10699874]
[1674251803566,0.01416658,22342.0,22339.0,0.01431]
[1674251803821,0.01416658,22342.0,22341.0,0.10659762]
[1674251804073,0.01416658,22342.0,22341.0,0.033905]
[1674251804321,0.01416658,22342.0,22341.0,0.483905]
[1674251805069,0.01416658,22342.0,22341.0,0.581905]
[1674251805321,0.01416658,22342.0,22341.0,0.93837815]
[1674251806079,0.01416658,22342.0,22341.0,1.03637815]
[1674251806566,0.01416658,22342.0,22341.0,1.17267815]
[1674251807316,0.01416658,22342.0,22341.0,1.07467815]
[1674251807558,0.01416658,22342.0,22341.0,1.16773815]
[1674251808804,0.01416658,22342.0,22341.0,1.07473815]
[1674251809047,0.01416658,22342.0,22341.0,1.16673815]
[1674251809555,0.00895845,22345.0,22342.0,0.15]
[1674251809815,0.00895845,22345.0,22344.0,0.1365]
[1674251810057,0.00895845,22345.0,22344.0,1.515487]
[1674251810554,8.45e-06,22345.0,22344.0,2.03816015]
[1674251810807,0.01431374,22346.0,22344.0,2.56570263]
[1674251811065,0.01431374,22346.0,22344.0,2.10573432]
[1674251811337,0.01431374,22346.0,22345.0,0.033887]
[1674251811591,0.01431374,22346.0,22345.0,0.183887]
[1674251811850,0.01431374,22346.0,22345.0,0.483887]
[1674251812106,0.01431374,22346.0,22345.0,0.425587]
[1674251812838,0.00431374,22346.0,22345.0,0.575587]
[1674251813318,0.00431374,22346.0,22345.0,1.47758715]
[1674251813818,0.00431374,22346.0,22345.0,1.59926246]
[1674251814074,0.00431374,22346.0,22345.0,1.50726246]
[1674251814351,0.01401612,22347.0,22345.0,1.59926246]
[1674251814632,0.01401612,22347.0,22346.0,0.15]
[1674251814885,0.01401612,22347.0,22346.0,0.63139]
[1674251815101,0.01401612,22347.0,22346.0,1.38586315]
[1674251815320,0.01401612,22347.0,22346.0,1.45426315]
[1674251815568,0.00401612,22347.0,22346.0,1.45426315]
[1674251817122,0.00401612,22347.0,22346.0,1.54626315]
[1674251817371,1.2e-07,22347.0,22346.0,1.54626315]
[1674251817861,1.2e-07,22347.0,22346.0,1.57593846]
[1674251818112,0.004481,22348.0,22346.0,1.61416315]
[1674251818364,0.01543343,22355.0,22348.0,0.00448]
[1674251818646,0.01543343,22355.0,22353.0,0.0684]
[1674251818892,0.01543343,22355.0,22354.0,1.342041]
[1674251818893,0.01641228,22355.0,22354.0,1.342041]
[1674251819140,0.01641228,22355.0,22354.0,1.675891]
[1674251819141,0.01543343,22355.0,22354.0,1.675891]
[1674251820631,0.01543343,22355.0,22354.0,1.768891]
[1674251820888,0.01543343,22355.0,22354.0,1.675891]
[1674251821145,0.01543343,22355.0,22354.0,1.768891]
[1674251821403,0.01543343,22355.0,22354.0,1.26613041]
[1674251821658,0.06297343,22355.0,22354.0,0.03758641]
[1674251822153,0.38490543,22355.0,22354.0,0.03758641]
[1674251822403,0.37379943,22355.0,22354.0,0.13058641]
[1674251822658,0.01543343,22355.0,22354.0,0.03758641]
[1674251822910,0.06297343,22355.0,22354.0,0.094]
[1674251823172,0.38062743,22355.0,22351.0,0.447393]
[1674251823437,0.674911,22355.0,22354.0,0.025]
[1674251823690,0.82027157,22355.0,22351.0,0.48366828]
[1674251823955,0.674911,22355.0,22354.0,0.025]
[1674251824216,0.674911,22355.0,22349.0,0.03505004]
[1674251824217,0.51637645,22355.0,22349.0,0.03505004]
[1674251824476,0.55476843,22354.0,22351.0,0.094]
[1674251824740,0.312103,22353.0,22349.0,0.03505004]
[1674251825000,0.49525443,22352.0,22347.0,0.447487]
[1674251825255,0.57063743,22351.0,22346.0,0.447498]
[1674251825507,0.49898643,22350.0,22346.0,0.49533039]
[1674251825755,0.49898643,22350.0,22347.0,0.03704784]
[1674251825756,0.325499,22349.0,22347.0,0.03704784]
[1674251826003,0.15,22350.0,22347.0,0.03704784]
[1674251826749,0.15,22350.0,22348.0,0.447467]
[1674251826997,0.305978,22349.0,22348.0,0.447467]
[1674251827513,0.327462,22349.0,22347.0,0.49151884]
[1674251827760,0.15,22350.0,22347.0,0.447471]
[1674251828017,0.37503764,22349.0,22348.0,0.007]
[1674251828267,0.09189536,22348.0,22347.0,0.447471]
[1674251828521,0.09189536,22348.0,22347.0,0.453471]
[1674251828770,0.38103764,22349.0,22347.0,0.006]
[1674251829010,0.37603764,22349.0,22347.0,0.006]
[1674251829268,0.37003764,22349.0,22346.0,0.04378278]
[1674251829519,0.37603764,22349.0,22346.0,0.04378278]
[1674251829768,0.37003764,22349.0,22346.0,0.04378278]
[1674251830020,0.37003764,22349.0,22347.0,0.006]
[1674251830021,0.15,22348.0,22347.0,0.006]
[1674251830526,0.15,22348.0,22345.0,0.0917]
[1674251830527,0.470951,22348.0,22345.0,0.0917]
[1674251830791,0.321966,22347.0,22346.0,0.002]
[1674251831043,0.321966,22347.0,22345.0,0.0917]
[1674251831301,0.31652,22346.0,22345.0,0.0917]
[1674251832310,0.31652,22346.0,22345.0,0.1127]
[1674251832561,0.31152,22346.0,22345.0,0.0917]
[1674251832822,0.4349,22349.0,22345.0,0.1127]
[1674251833033,0.84407006,22349.0,22345.0,0.16701599]
[1674251833324,0.84407006,22349.0,22345.0,0.61453699]
[1674251833577,0.34499934,22348.0,22345.0,0.59353699]
[1674251833831,0.4349,22349.0,22346.0,0.3]
[1674251834133,0.4349,22349.0,22347.0,0.038883]
[1674251834398,0.53290498,22350.0,22348.0,0.038876]
[1674251834656,0.53290498,22350.0,22346.0,0.3]
[1674251834974,0.006,22349.0,22346.0,0.302]
[1674251835179,0.00096259,22351.0,22346.0,0.747487]
[1674251835425,0.006,22349.0,22347.0,0.044878]
[1674251835684,0.006,22349.0,22348.0,0.558863]
[1674251835939,0.006,22349.0,22348.0,1.006326]
[1674251836682,0.006,22349.0,22348.0,1.156326]
[1674251836947,0.36439797,22351.0,22348.0,1.156326]
[1674251837207,0.36439797,22351.0,22348.0,1.006326]
[1674251837459,0.36343538,22351.0,22349.0,0.3]
[1674251837721,0.36343538,22351.0,22350.0,0.447427]
[1674251837966,0.00097664,22354.0,22350.0,0.94197715]
[1674251838216,0.001,22351.0,22350.0,0.94197715]
[1674251838728,0.40546645,22354.0,22350.0,0.94197715]
[1674251838981,0.40546645,22354.0,22351.0,0.45]
[1674251839234,0.01639564,22355.0,22352.0,0.894774]
[1674251839488,0.01639564,22355.0,22353.0,0.3]
[1674251839708,0.37183636,22355.0,22354.0,0.447347]
[1674251839998,0.36683636,22355.0,22354.0,0.447347]
[1674251840267,0.01043343,22355.0,22354.0,0.447347]
[1674251840523,0.01043343,22355.0,22354.0,0.54453744]
[1674251840784,0.01043343,22355.0,22354.0,0.59758351]
[1674251841397,0.01043343,22355.0,22354.0,0.29758351]
[1674251841552,0.01043343,22355.0,22354.0,0.30458351]
[1674251842742,0.01043343,22355.0,22354.0,0.06004607]
[1674251842999,0.05797343,22355.0,22354.0,0.06004607]
[1674251843505,0.20797343,22355.0,22354.0,0.06004607]
[1674251843760,0.20797343,22355.0,22354.0,0.007]
[1674251843761,0.99926489,22355.0,22354.0,0.007]
[1674251844032,1.06766489,22355.0,22354.0,0.007]
[1674251844298,0.15,22354.0,22353.0,0.1209]
[1674251844548,0.99542,22354.0,22353.0,0.1209]
[1674251844801,0.99542,22354.0,22349.0,0.04100835]
[1674251844802,0.15,22353.0,22349.0,0.04100835]
[1674251845084,0.56297743,22352.0,22345.0,0.447518]
[1674251845323,0.0679,22349.0,22347.0,0.04902441]
[1674251845577,0.314325,22348.0,22343.0,0.447556]
[1674251845829,0.65530643,22347.0,22345.0,0.04667128]
[1674251846085,0.15,22347.0,22345.0,0.04667128]
[1674251846845,0.40017262,22348.0,22345.0,0.04667128]
[1674251847361,0.15,22347.0,22345.0,0.04667128]
[1674251847618,0.40017262,22348.0,22346.0,0.04028756]
[1674251847619,0.009,22348.0,22346.0,0.04028756]
[1674251847900,0.51800717,22350.0,22346.0,0.34028756]
[1674251847901,0.36800717,22350.0,22346.0,0.34028756]
[1674251848157,0.01,22348.0,22346.0,0.78778556]
[1674251848408,0.39495212,22349.0,22347.0,0.05448639]
[1674251848660,0.008,22348.0,22346.0,0.447498]
[1674251849137,0.008,22348.0,22345.0,0.49333181]
[1674251849138,0.18502243,22347.0,22345.0,0.49333181]
[1674251849390,0.008,22348.0,22345.0,0.04581881]
[1674251849646,0.008,22348.0,22345.0,0.34581881]
[1674251850152,0.008,22348.0,22347.0,0.04199278]
[1674251850407,0.39495212,22349.0,22347.0,0.04199278]
[1674251850906,0.01,22348.0,22347.0,0.04199278]
[1674251851155,0.39495212,22349.0,22347.0,0.04199278]
[1674251851411,0.41095212,22349.0,22347.0,0.04199278]
[1674251851665,0.016,22349.0,22347.0,0.48947178]
[1674251851917,0.40140133,22350.0,22346.0,0.447498]
[1674251852170,0.016,22348.0,22344.0,0.48953293]
[1674251852422,0.18502243,22347.0,22344.0,0.48953293]
[1674251852675,0.18502243,22347.0,22344.0,0.04199393]
[1674251852676,0.33502243,22347.0,22344.0,0.04199393]
[1674251852931,0.33502243,22347.0,22343.0,0.447548]
[1674251853182,0.4099295,22346.0,22343.0,0.4950688]
[1674251853439,0.59495193,22346.0,22343.0,0.4950688]
[1674251853695,0.4099295,22346.0,22344.0,0.04603607]
[1674251853951,0.31064,22349.0,22344.0,0.19603607]
[1674251853952,0.00096117,22348.0,22344.0,0.19603607]
[1674251854206,0.39040689,22348.0,22345.0,0.2521]
[1674251854456,0.009,22346.0,22345.0,0.2521]
[1674251854713,0.39040689,22348.0,22345.0,0.33931846]
[1674251854970,0.39940689,22348.0,22345.0,0.33931846]
[1674251855751,0.39940689,22348.0,22346.0,0.04107396]
[1674251856254,0.38944572,22348.0,22346.0,0.04107396]
[1674251856720,0.38944572,22348.0,22346.0,0.34107396]
[1674251856994,0.008,22348.0,22346.0,0.34107396]
[1674251857239,0.008,22348.0,22346.0,0.04107396]
[1674251857482,0.008,22348.0,22346.0,0.34107396]
[1674251858479,0.008,22348.0,22347.0,0.0442183]
[1674251859480,0.05554,22348.0,22346.0,0.4475]
[1674251859731,0.40747354,22347.0,22345.0,0.07763478]
[1674251859978,0.306677,22346.0,22345.0,0.07763478]
[1674251860234,0.56179391,22350.0,22347.0,0.04871992]
[1674251860491,0.008,22348.0,22347.0,0.04871992]
[1674251860739,0.56179391,22350.0,22347.0,0.04871992]
[1674251861265,0.06905084,22351.0,22347.0,0.04871992]
[1674251861562,0.016,22348.0,22347.0,0.64619592]
[1674251861784,0.00095084,22351.0,22347.0,0.94619592]
[1674251862045,0.37634716,22351.0,22348.0,0.3]
[1674251862300,0.37634716,22351.0,22347.0,0.64619592]
[1674251862546,0.37634716,22351.0,22348.0,0.3]
[1674251862798,0.37634716,22351.0,22348.0,0.15]
[1674251863056,0.37634716,22351.0,22348.0,0.45]
[1674251863306,0.46534716,22351.0,22349.0,0.04683824]
[1674251863806,0.4369133,22350.0,22347.0,0.03938648]
[1674251864153,0.62193573,22350.0,22347.0,0.03938648]
[1674251864307,0.4369133,22350.0,22347.0,0.03938648]
[1674251865830,0.4369133,22350.0,22346.0,0.03975746]
[1674251866084,0.15,22349.0,22345.0,0.03931846]
[1674251866340,0.33502243,22349.0,22345.0,0.07893411]
[1674251866586,0.308237,22348.0,22345.0,0.07893411]
[1674251866838,0.18502243,22348.0,22345.0,0.07893411]
[1674251867089,0.196,22349.0,22345.0,0.07893411]
[1674251867593,0.01,22348.0,22345.0,0.07893411]
[1674251868095,0.15,22349.0,22345.0,0.07893411]
[1674251868341,0.46938796,22348.0,22345.0,0.07893411]
[1674251868605,0.46938796,22348.0,22345.0,0.03931846]
[1674251868892,0.036,22348.0,22345.0,0.03931846]
[1674251869360,0.468379,22347.0,22345.0,0.03931846]
[1674251869621,0.32224,22346.0,22345.0,0.03931846]
[1674251869885,0.15,22347.0,22345.0,0.03931846]
[1674251870137,0.186,22347.0,22345.0,0.03931846]
[1674251870390,0.31693,22346.0,22345.0,0.03931846]
[1674251871148,0.77325309,22346.0,22345.0,0.03931846]
[1674251871401,0.46026409,22346.0,22345.0,0.03931846]
[1674251871695,0.79274209,22346.0,22345.0,0.03931846]
[1674251872439,0.80274209,22346.0,22345.0,0.03931846]
[1674251872689,0.15,22345.0,22341.0,0.3]
[1674251872941,0.33502243,22345.0,22341.0,0.31139025]
[1674251873449,0.38353126,22344.0,22341.0,0.31139025]
[1674251873731,0.38353126,22344.0,22342.0,0.00947919]
[1674251874276,0.38353126,22344.0,22342.0,0.45705819]
[1674251874501,0.01,22345.0,22343.0,0.4]
[1674251874992,0.39752685,22346.0,22343.0,0.4]
[1674251875490,0.016,22345.0,22343.0,0.3]
[1674251875753,0.39752685,22346.0,22343.0,0.3]
[1674251875998,0.39752685,22346.0,22344.0,0.01052307]
[1674251876247,0.41352685,22346.0,22344.0,0.01052307]
[1674251876530,0.39657156,22346.0,22341.0,0.447594]
[1674251876842,0.5955806,22345.0,22342.0,0.01146563]
[1674251877068,0.15,22344.0,22342.0,0.01146563]
[1674251877841,0.33502243,22344.0,22340.0,0.594321]
[1674251878093,0.40342243,22344.0,22340.0,0.1467]
[1674251878341,0.3077,22343.0,22340.0,0.1467]
[1674251878600,0.18502243,22343.0,22340.0,0.1467]
[1674251878853,0.40878575,22342.0,22340.0,0.1467]
[1674251879106,0.296189,22341.0,22340.0,0.1467]
[1674251879610,0.296189,22341.0,22336.0,0.40620363]
[1674251879863,0.296189,22341.0,22336.0,0.47710363]
[1674251879864,0.18502243,22340.0,22336.0,0.47710363]
[1674251880126,0.18502243,22340.0,22337.0,0.15]